fUST/lending_fUST_20241114
["ID","MTS","AMOUNT","RATE_DAILY","PERIOD"]
[342174994,1731532247019,-151.0,0.000302,7]
[342174995,1731532247028,-98.32933628,0.00030205,2]
[342174996,1731532247041,-294.67066372,0.00030205,2]
[342174997,1731532247050,-208.34122025,0.00030224,20]
[342174998,1731532247065,-772.06665232,0.00030224,20]
[342174999,1731532247079,-500.0,0.00030224,20]
[342175000,1731532247092,-500.0,0.00030224,20]
[342175001,1731532247104,-54.23960247,0.00030224,2]
[342175002,1731532247119,-445.76039753,0.00030224,2]
[342175003,1731532247131,-151.0,0.00030288,7]
[342175004,1731532247144,-151.0,0.00030288,7]
[342175005,1731532247158,-151.0,0.00030288,7]
[342175006,1731532247171,-151.0,0.00030288,7]
[342175007,1731532247186,-151.0,0.00030288,7]
[342175008,1731532247206,-151.0,0.00030288,7]
[342175009,1731532247220,-151.0,0.00030288,7]
[342175010,1731532247234,-151.0,0.00030288,7]
[342175011,1731532247253,-151.0,0.00030288,7]
[342175012,1731532247276,-151.0,0.00030288,7]
[342175013,1731532247291,-151.0,0.00030288,7]
[342175014,1731532247305,-151.0,0.00030288,7]
[342175015,1731532247318,-151.0,0.00030288,7]
[342175016,1731532247330,-151.0,0.00030288,7]
[342175017,1731532247344,-179.483516,0.00030288,7]
[342175018,1731532247358,-151.0,0.00030288,7]
[342175019,1731532247372,-151.0,0.00030288,7]
[342175020,1731532247385,-151.0,0.00030288,7]
[342175021,1731532247400,-151.0,0.00030288,7]
[342175022,1731532247413,-151.0,0.00030288,7]
[342175023,1731532247427,-249.383152,0.00030288,7]
[342175024,1731532247444,-151.0,0.00030288,7]
[342175025,1731532247456,-151.0,0.00030288,7]
[342175026,1731532247468,-151.0,0.00030288,7]
[342175027,1731532247480,-151.0,0.00030288,7]
[342175028,1731532247494,-151.0,0.00030288,7]
[342175029,1731532247510,-151.0,0.00030288,7]
[342175030,1731532247526,-154.73122,0.00030288,7]
[342175031,1731532247538,-336.634507,0.00030288,7]
[342175032,1731532247549,-336.634507,0.00030288,7]
[342175033,1731532247562,-336.634507,0.00030288,7]
[342175034,1731532247577,-336.634507,0.00030288,7]
[342175035,1731532247590,-336.634507,0.00030288,7]
[342175036,1731532247603,-336.634507,0.00030288,7]
[342175037,1731532247614,-336.634507,0.00030288,7]
[342175038,1731532247628,-336.634507,0.00030288,7]
[342175039,1731532247640,-336.634507,0.00030288,7]
[342175040,1731532247653,-336.634507,0.00030288,7]
[342175041,1731532247666,-336.634507,0.00030288,7]
[342175042,1731532247678,-336.634499,0.00030288,7]
[342175043,1731532247694,-511.59399653,0.00030293,7]
[342175044,1731532247708,-511.59399653,0.00030293,7]
[342175045,1731532247720,-5857.83964541,0.00030293,10]
[342175046,1731532247737,-26740.5,0.00030293,10]
[342175047,1731532247753,-8285.95391321,0.00030293,10]
[342175048,1731532247768,-1184.56060369,0.00030293,10]
[342175049,1731532247782,-67599.1201272,0.00030293,10]
[342175050,1731532247797,-275.2630812,0.00030293,10]
[342175051,1731532247911,-197.34124239,0.00027397,4]
[342175052,1731532247923,-1785.0,0.00028278,15]
[342175053,1731532247934,-15797.25875761,0.00030293,10]
[342175054,1731532247951,-407.54001485,0.00030293,10]
[342175055,1731532247963,-9002.60663523,0.00030293,10]
[342175056,1731532247975,-2228.74089267,0.00030293,10]
[342175125,1731533433939,-1169.27083333,0.0002,2]
[342175126,1731533433956,-160.0,0.0002,2]
[342175127,1731533433967,-397.6515188,0.0002074,2]
[342175128,1731533433977,-300.0,0.00021799,2]
[342175129,1731533433987,-300.0,0.00021799,2]
[342175130,1731533433996,-10000.0,0.000218,10]
[342175131,1731533434004,-298.55196927,0.0002438,2]
[342175132,1731533434014,-175.402485,0.00024382,2]
[342175133,1731533434023,-86.71573819,0.00024529,2]
[342175134,1731533434034,-86.82393281,0.00024529,2]
[342175135,1731533434043,-306.137157,0.00024935,2]
[342175136,1731533434052,-487.92558446,0.0002509,2]
[342175137,1731533434064,-3276.38470654,0.0002509,2]
[342175138,1731533434073,-646.29,0.000251,2]
[342175139,1731533434083,-2137.2136822,0.00025252,2]
[342175140,1731533434092,-1058.1829305,0.00025375,2]
[342175141,1731533434102,-5640.676899,0.0002611,2]
[342175142,1731533434111,-24900.0,0.00026454,2]
[342175143,1731533434120,-755.2277887,0.00026475,2]
[342175144,1731533434129,-174.05,0.00026575,13]
[342175145,1731533434138,-379.33,0.00027,2]
[342175146,1731533434147,-755.22778864,0.00027006,2]
[342175147,1731533434156,-12377.11182364,0.00027297,2]
[342175148,1731533434166,-488.02044934,0.00027397,4]
[342175149,1731533434175,-515.89662781,0.00027397,4]
[342175150,1731533434184,-511.7209669,0.00027397,4]
[342175151,1731533434199,-502.06318965,0.00027397,4]
[342175152,1731533434208,-500.0,0.00027397,4]
[342175153,1731533434218,-500.0,0.00027397,4]
[342175154,1731533434227,-500.58028047,0.00027397,4]
[342175155,1731533434236,-500.0,0.00027397,4]
[342175156,1731533434245,-371.26745945,0.00027397,4]
[342175157,1731533434254,-500.0,0.00027397,4]
[342175158,1731533434264,-500.0,0.00027397,4]
[342175159,1731533434273,-500.0,0.00027397,4]
[342175160,1731533434283,-526.28,0.00027397,4]
[342175161,1731533434292,-500.0,0.00027397,4]
[342175162,1731533434301,-505.92873631,0.00027397,4]
[342175163,1731533434310,-500.0,0.00027397,4]
[342175164,1731533434320,-500.0,0.00027397,4]
[342175165,1731533434329,-500.0,0.00027397,4]
[342175166,1731533434339,-3083.59,0.00027397,4]
[342175167,1731533434348,-500.0,0.00027397,4]
[342175168,1731533434357,-500.0,0.00027397,4]
[342175169,1731533434367,-337.16,0.00027397,4]
[342175170,1731533434376,-500.0,0.00027397,4]
[342175171,1731533434386,-500.0,0.00027397,4]
[342175172,1731533434399,-212.60924394,0.00027397,4]
[342175173,1731533434408,-500.0,0.00027397,4]
[342175174,1731533434417,-614.07,0.00027397,4]
[342175175,1731533434427,-500.0,0.00027397,4]
[342175176,1731533434437,-500.0,0.00027397,4]
[342175177,1731533434450,-500.0,0.00027397,4]
[342175178,1731533434459,-500.0,0.00027397,4]
[342175179,1731533434468,-850.78,0.00027397,4]
[342175180,1731533434480,-413.86353064,0.00027397,4]
[342175181,1731533434491,-1116.24,0.00027397,4]
[342175182,1731533434500,-1265.35,0.00027397,4]
[342175183,1731533434510,-500.0,0.00027397,4]
[342175184,1731533434519,-500.0,0.00027397,4]
[342175185,1731533434528,-500.0,0.00027397,4]
[342175186,1731533434537,-648.26,0.00027397,4]
[342175187,1731533434546,-500.0,0.00027397,4]
[342175188,1731533434555,-500.0,0.00027397,4]
[342175189,1731533434564,-500.0,0.00027397,4]
[342175190,1731533434573,-500.0,0.00027397,4]
[342175191,1731533434582,-500.0,0.00027397,4]
[342175192,1731533434591,-538.65,0.00027397,4]
[342175193,1731533434600,-500.0,0.00027397,4]
[342175194,1731533434609,-578.56,0.00027397,4]
[342175195,1731533434618,-500.0,0.00027397,4]
[342175196,1731533434627,-500.0,0.00027397,4]
[342175197,1731533434636,-301.71980061,0.00027397,4]
[342175198,1731533434645,-500.0,0.00027397,4]
[342175199,1731533434654,-500.0,0.00027397,4]
[342175200,1731533434663,-500.0,0.00027397,4]
[342175201,1731533434671,-500.0,0.00027397,4]
[342175202,1731533434680,-500.0,0.00027397,4]
[342175203,1731533434689,-500.0,0.00027397,4]
[342175204,1731533434703,-500.0,0.00027397,4]
[342175205,1731533434712,-500.0,0.00027397,4]
[342175206,1731533434721,-755.22778864,0.00027537,2]
[342175207,1731533434730,-970.83,0.00027641,10]
[342175208,1731533434739,-1165.0,0.00027651,10]
[342175209,1731533434748,-520.04,0.00027661,3]
[342175210,1731533434757,-1397.99,0.00027661,10]
[342175211,1731533434767,-500.0,0.00027671,4]
[342175212,1731533434776,-500.0,0.00027671,4]
[342175213,1731533434785,-500.0,0.00027671,4]
[342175214,1731533434794,-500.0,0.00027671,4]
[342175215,1731533434803,-526.28,0.00027671,4]
[342175216,1731533434812,-500.0,0.00027671,4]
[342175217,1731533434821,-544.4908604,0.00027671,4]
[342175218,1731533434830,-500.0,0.00027671,4]
[342175219,1731533434839,-500.0,0.00027671,4]
[342175220,1731533434848,-3083.59,0.00027671,4]
[342175221,1731533434857,-500.0,0.00027671,4]
[342175222,1731533434866,-500.0,0.00027671,4]
[342175223,1731533434876,-500.0,0.00027671,4]
[342175224,1731533434889,-614.07,0.00027671,4]
[342175225,1731533434898,-500.0,0.00027671,4]
[342175226,1731533434908,-500.0,0.00027671,4]
[342175227,1731533434917,-500.0,0.00027671,4]
[342175228,1731533434927,-500.0,0.00027671,4]
[342175229,1731533434936,-850.78,0.00027671,4]
[342175230,1731533434947,-1116.24,0.00027671,4]
[342175231,1731533434956,-1265.35,0.00027671,4]
[342175232,1731533434965,-500.0,0.00027671,4]
[342175233,1731533434975,-500.0,0.00027671,4]
[342175234,1731533434984,-648.26,0.00027671,4]
[342175235,1731533434994,-500.0,0.00027671,4]
[342175236,1731533435003,-500.0,0.00027671,4]
[342175237,1731533435012,-500.0,0.00027671,4]
[342175238,1731533435021,-500.0,0.00027671,4]
[342175239,1731533435030,-538.65,0.00027671,4]
[342175240,1731533435039,-578.56,0.00027671,4]
[342175241,1731533435048,-500.0,0.00027671,4]
[342175242,1731533435057,-500.0,0.00027671,4]
[342175243,1731533435066,-500.0,0.00027671,4]
[342175244,1731533435075,-500.0,0.00027671,4]
[342175245,1731533435084,-500.0,0.00027671,4]
[342175246,1731533435093,-500.0,0.00027671,4]
[342175247,1731533435102,-6000.0,0.00027845,2]
[342175248,1731533435112,-151.0,0.00027945,7]
[342175249,1731533435121,-500.0,0.00027945,4]
[342175250,1731533435130,-500.0,0.00027945,4]
[342175251,1731533435139,-564.08,0.00027945,4]
[342175252,1731533435148,-500.0,0.00027945,4]
[342175253,1731533435157,-526.28,0.00027945,4]
[342175254,1731533435167,-500.0,0.00027945,4]
[342175255,1731533435176,-500.0,0.00027945,4]
[342175256,1731533435184,-500.0,0.00027945,4]
[342175257,1731533435197,-3083.59,0.00027945,4]
[342175258,1731533435206,-500.0,0.00027945,4]
[342175259,1731533435215,-500.0,0.00027945,4]
[342175260,1731533435224,-191.21404543,0.00027945,4]
[342175261,1731533435234,-614.07,0.00027945,4]
[342175262,1731533435243,-500.0,0.00027945,4]
[342175263,1731533435253,-500.0,0.00027945,4]
[342175264,1731533435263,-500.0,0.00027945,4]
[342175265,1731533435272,-500.0,0.00027945,4]
[342175266,1731533435281,-850.78,0.00027945,4]
[342175267,1731533435291,-1116.24,0.00027945,4]
[342175268,1731533435300,-1265.35,0.00027945,4]
[342175269,1731533435310,-500.0,0.00027945,4]
[342175270,1731533435319,-500.0,0.00027945,4]
[342175271,1731533435328,-648.26,0.00027945,4]
[342175272,1731533435338,-196.56416485,0.00027945,4]
[342175273,1731533435347,-598.61576623,0.00027945,4]
[342175274,1731533435357,-500.0,0.00027945,4]
[342175275,1731533435367,-500.0,0.00027945,4]
[342175276,1731533435376,-538.65,0.00027945,4]
[342175277,1731533435386,-578.56,0.00027945,4]
[342175278,1731533435400,-500.0,0.00027945,4]
[342175279,1731533435411,-500.0,0.00027945,4]
[342175280,1731533435420,-500.0,0.00027945,4]
[342175281,1731533435430,-616.19090456,0.00027945,4]
[342175282,1731533435441,-500.0,0.00027945,4]
[342175283,1731533435454,-500.0,0.00027945,4]
[342175284,1731533435464,-755.22778864,0.00028068,2]
[342175285,1731533435476,-280.806293,0.00028219,7]
[342175286,1731533435486,-500.0,0.00028219,4]
[342175287,1731533435495,-500.0,0.00028219,4]
[342175288,1731533435504,-500.0,0.00028219,4]
[342175289,1731533435514,-526.28,0.00028219,4]
[342175290,1731533435523,-500.0,0.00028219,4]
[342175291,1731533435533,-500.0,0.00028219,4]
[342175292,1731533435542,-587.85224798,0.00028219,4]
[342175293,1731533435551,-3083.59,0.00028219,4]
[342175294,1731533435560,-156.82341878,0.00028219,4]
[342175295,1731533435570,-500.0,0.00028219,4]
[342175296,1731533435579,-614.07,0.00028219,4]
[342175297,1731533435588,-285.9670897,0.00028219,4]
[342175298,1731533435597,-500.0,0.00028219,4]
[342175299,1731533435606,-542.20870477,0.00028219,4]
[342175300,1731533435615,-500.0,0.00028219,4]
[342175301,1731533435625,-850.78,0.00028219,4]
[342175302,1731533435635,-1116.24,0.00028219,4]
[342175303,1731533435644,-1265.35,0.00028219,4]
[342175304,1731533435653,-500.0,0.00028219,4]
[342175305,1731533435662,-500.0,0.00028219,4]
[342175306,1731533435672,-648.26,0.00028219,4]
[342175307,1731533435681,-360.47439677,0.00028219,4]
[342175308,1731533435691,-500.0,0.00028219,4]
[342175309,1731533435704,-538.65,0.00028219,4]
[342175310,1731533435714,-578.56,0.00028219,4]
[342175311,1731533435724,-500.0,0.00028219,4]
[342175312,1731533435733,-500.0,0.00028219,4]
[342175313,1731533435742,-500.0,0.00028219,4]
[342175314,1731533435752,-500.0,0.00028219,4]
[342175315,1731533435761,-500.0,0.00028219,4]
[342175316,1731533435771,-1711.07966,0.00028347,15]
[342175317,1731533435780,-151.0,0.00028348,6]
[342175318,1731533435790,-171.9310824,0.00028393,2]
[342175319,1731533435799,-1003.8360207,0.000284,2]
[342175320,1731533435809,-151.0,0.00028493,7]
[342175321,1731533435819,-500.0,0.00028493,4]
[342175322,1731533435828,-500.0,0.00028493,4]
[342175323,1731533435837,-500.0,0.00028493,4]
[342175324,1731533435846,-526.28,0.00028493,4]
[342175325,1731533435855,-500.0,0.00028493,4]
[342175326,1731533435864,-500.0,0.00028493,4]
[342175327,1731533435873,-3083.59,0.00028493,4]
[342175328,1731533435882,-500.0,0.00028493,4]
[342175329,1731533435891,-614.07,0.00028493,4]
[342175330,1731533435900,-500.0,0.00028493,4]
[342175331,1731533435909,-616.7062635,0.00028493,4]
[342175332,1731533435918,-850.78,0.00028493,4]
[342175333,1731533435927,-1116.24,0.00028493,4]
[342175334,1731533435937,-1265.35,0.00028493,4]
[342175335,1731533435948,-500.0,0.00028493,4]
[342175336,1731533435957,-500.0,0.00028493,4]
[342175337,1731533435967,-648.26,0.00028493,4]
[342175338,1731533435976,-500.0,0.00028493,4]
[342175339,1731533435985,-538.65,0.00028493,4]
[342175340,1731533435994,-578.56,0.00028493,4]
[342175341,1731533436003,-500.0,0.00028493,4]
[342175342,1731533436012,-500.0,0.00028493,4]
[342175343,1731533436022,-500.0,0.00028493,4]
[342175344,1731533436031,-500.0,0.00028493,4]
[342175345,1731533436040,-755.22778864,0.000286,2]
[342175346,1731533436049,-500.0,0.00028767,4]
[342175347,1731533436151,-500.0,0.00028767,4]
[342175348,1731533436162,-500.0,0.00028767,4]
[342175349,1731533436171,-526.28,0.00028767,4]
[342175350,1731533436180,-500.0,0.00028767,4]
[342175351,1731533436189,-500.0,0.00028767,4]
[342175352,1731533436202,-500.0,0.00028767,7]
[342175353,1731533436211,-1902.89981067,0.00028767,4]
[342175354,1731533436225,-416.32372251,0.00028767,4]
[342175355,1731533436236,-764.36646682,0.00028767,4]
[342175356,1731533436245,-500.0,0.00028767,4]
[342175357,1731533436255,-58.64853318,0.00028767,4]
[342175358,1731533436266,-555.42146682,0.00028767,4]
[342175359,1731533436275,-500.0,0.00028767,4]
[342175360,1731533436284,-850.78,0.00028767,4]
[342175361,1731533436294,-70.50784797,0.00028767,4]
[342175362,1731533436305,-1045.73215203,0.00028767,4]
[342175363,1731533436315,-1265.35,0.00028767,4]
[342175364,1731533436323,-500.0,0.00028767,4]
[342175365,1731533436333,-500.0,0.00028767,4]
[342175366,1731533436343,-648.26,0.00028767,4]
[342175367,1731533436353,-500.0,0.00028767,4]
[342175368,1731533436363,-538.65,0.00028767,4]
[342175369,1731533436372,-578.56,0.00028767,4]
[342175370,1731533436382,-500.0,0.00028767,4]
[342175371,1731533436391,-500.0,0.00028767,4]
[342175372,1731533436404,-528.51,0.00028767,4]
[342175373,1731533436413,-500.0,0.00028767,4]
[342175374,1731533436423,-151.0,0.00028973,7]
[342175375,1731533436432,-379.33,0.00029,2]
[342175376,1731533436442,-422.77080811,0.0002904,2]
[342175377,1731533436454,-158.97669854,0.0002904,2]
[342175378,1731533436463,-337.90945982,0.0002904,2]
[342175379,1731533436473,-151.0,0.00029041,7]
[342175380,1731533436486,-187.2871823,0.00029041,4]
[342175396,1731533437867,-500.0,0.00027944,2]
[342175398,1731533437877,-500.0,0.00027944,2]
[342175399,1731533437886,-153.74371779,0.00027944,2]
[342175401,1731533437896,-334.87645803,0.00027944,2]
[342175403,1731533437906,-500.0,0.00027944,2]
[342175405,1731533437915,-500.0,0.00027944,2]
[342175407,1731533437925,-500.0,0.00027944,2]
[342175408,1731533437934,-500.0,0.00027944,2]
[342175410,1731533437943,-500.0,0.00027944,2]
[342175411,1731533437956,-500.0,0.00027944,2]
[342175413,1731533437965,-500.0,0.00027944,2]
[342175414,1731533437975,-365.87985418,0.00027944,2]
[342175416,1731533437986,-10.66631823,0.00027944,2]
[342175418,1731533437995,-196.24013203,0.00027944,2]
[342175420,1731533438005,-500.0,0.00027944,2]
[342175422,1731533438014,-300.0,0.00027944,2]
[342175423,1731533438024,-397.66893102,0.00027944,2]
[342175424,1731533438918,-102.33106898,0.00027944,2]
[342175425,1731533438928,-500.0,0.00027944,2]
[342175426,1731533438937,-500.0,0.00027944,2]
[342175427,1731533438946,-500.0,0.00027944,2]
[342175428,1731533438956,-1568.047,0.00028347,15]
[342175429,1731533438965,-500.0,0.00028493,4]
[342175430,1731533438975,-500.0,0.00028767,4]
[342175431,1731533438984,-312.7128177,0.00029041,4]
[342175432,1731533438994,-500.0,0.00029041,4]
[342175433,1731533439003,-500.0,0.00029041,4]
[342175434,1731533439012,-526.28,0.00029041,4]
[342175435,1731533439022,-500.0,0.00029041,4]
[342175436,1731533439031,-500.0,0.00029041,4]
[342175437,1731533439040,-1791.36611332,0.00029041,4]
[342175438,1731533439051,-473.21000055,0.00029041,4]
[342175439,1731533439063,-819.01388613,0.00029041,4]
[342175440,1731533439072,-500.0,0.00029041,4]
[342175441,1731533439081,-614.07,0.00029041,4]
[342175442,1731533439089,-500.0,0.00029041,4]
[342175443,1731533439098,-850.78,0.00029041,4]
[342175444,1731533439107,-1116.24,0.00029041,4]
[342175445,1731533439116,-1265.35,0.00029041,4]
[342175446,1731533439125,-500.0,0.00029041,4]
[342175447,1731533439134,-500.0,0.00029041,4]
[342175448,1731533439144,-648.26,0.00029041,4]
[342175449,1731533439152,-500.0,0.00029041,4]
[342175450,1731533439162,-538.65,0.00029041,4]
[342175451,1731533439172,-578.56,0.00029041,4]
[342175452,1731533439182,-500.0,0.00029041,4]
[342175453,1731533439191,-500.0,0.00029041,4]
[342175454,1731533439203,-500.0,0.00029041,4]
[342175455,1731533439212,-500.0,0.00029041,4]
[342175456,1731533439221,-755.22778864,0.00029131,2]
[342175457,1731533439231,-153.252,0.0002923,10]
[342175458,1731533439240,-171.93108239,0.00029293,2]
[342175459,1731533439250,-500.0,0.00029314,7]
[342175460,1731533439259,-500.0,0.00029315,4]
[342175461,1731533439268,-500.0,0.00029315,4]
[342175462,1731533439278,-500.0,0.00029315,4]
[342175464,1731533439287,-526.28,0.00029315,4]
[342175466,1731533439297,-500.0,0.00029315,4]
[342175467,1731533439307,-500.0,0.00029315,4]
[342175468,1731533439316,-3083.59,0.00029315,4]
[342175469,1731533439326,-500.0,0.00029315,4]
[342175470,1731533439335,-614.07,0.00029315,4]
[342175471,1731533439345,-500.0,0.00029315,4]
[342175472,1731533439355,-850.78,0.00029315,4]
[342175473,1731533439366,-1116.24,0.00029315,4]
[342175474,1731533439375,-1265.35,0.00029315,4]
[342175475,1731533439385,-500.0,0.00029315,4]
[342175476,1731533439396,-500.0,0.00029315,4]
[342175477,1731533439407,-648.26,0.00029315,4]
[342175478,1731533439418,-500.0,0.00029315,4]
[342175479,1731533439428,-538.65,0.00029315,4]
[342175480,1731533439438,-578.56,0.00029315,4]
[342175481,1731533439453,-184.72934973,0.00029315,4]
[342175482,1731533439462,-500.0,0.00029315,4]
[342175484,1731533439471,-500.0,0.00029315,4]
[342175486,1731533439482,-151.8772076,0.00029315,4]
[342175488,1731533439498,-348.1227924,0.00029315,4]
[342175489,1731533439507,-153.0,0.00029342,30]
[342175490,1731533439517,-256.840312,0.00029589,7]
[342175491,1731533439526,-239.29452204,0.00029589,4]
[342175492,1731533439538,-260.70547796,0.00029589,4]
[342175493,1731533439547,-500.0,0.00029589,4]
[342175494,1731533439556,-500.0,0.00029589,4]
[342175495,1731533439566,-526.28,0.00029589,4]
[342175496,1731533439575,-500.0,0.00029589,4]
[342175498,1731533439584,-500.0,0.00029589,4]
[342175500,1731533439593,-500.0,0.00029589,10]
[342175502,1731533439602,-3083.59,0.00029589,4]
[342175504,1731533439612,-500.0,0.00029589,4]
[342175506,1731533439621,-614.07,0.00029589,4]
[342175507,1731533439630,-500.0,0.00029589,4]
[342175509,1731533439640,-850.78,0.00029589,4]
[342175511,1731533439649,-1116.24,0.00029589,4]
[342175512,1731533439659,-1265.35,0.00029589,4]
[342175513,1731533439668,-500.0,0.00029589,4]
[342175514,1731533439677,-500.0,0.00029589,4]
[342175515,1731533439687,-648.26,0.00029589,4]
[342175516,1731533439696,-500.0,0.00029589,4]
[342175517,1731533439713,-538.65,0.00029589,4]
[342175518,1731533439723,-578.56,0.00029589,4]
[342175519,1731533439733,-500.0,0.00029589,4]
[342175520,1731533439742,-500.0,0.00029589,4]
[342175521,1731533439751,-354.35734728,0.00029589,4]
[342175522,1731533439760,-151.0,0.00029599,7]
[342175523,1731533439770,-755.22778864,0.00029662,2]
[342175524,1731533439780,-465.43961741,0.00029863,4]
[342175525,1731533439790,-500.0,0.00029863,4]
[342175527,1731533439799,-500.0,0.00029863,4]
[342175529,1731533439810,-526.28,0.00029863,4]
[342175530,1731533439819,-500.0,0.00029863,4]
[342175531,1731533439829,-500.0,0.00029863,4]
[342175532,1731533439839,-3083.59,0.00029863,4]
[342175533,1731533439848,-500.0,0.00029863,4]
[342175534,1731533439857,-614.07,0.00029863,4]
[342175535,1731533439867,-500.0,0.00029863,4]
[342175536,1731533439876,-850.78,0.00029863,4]
[342175537,1731533439886,-1116.24,0.00029863,4]
[342175538,1731533439895,-1265.35,0.00029863,4]
[342175539,1731533439904,-500.0,0.00029863,4]
[342175540,1731533439913,-500.0,0.00029863,4]
[342175542,1731533439923,-648.26,0.00029863,4]
[342175544,1731533439932,-500.0,0.00029863,4]
[342175545,1731533439941,-538.65,0.00029863,4]
[342175546,1731533439955,-578.56,0.00029863,4]
[342175547,1731533439964,-500.0,0.00029863,4]
[342175548,1731533439973,-500.0,0.00029863,4]
[342175549,1731533439983,-345.35349437,0.0003,10]
[342175550,1731533439992,-193.0,0.0003,2]
[342175551,1731533440001,-302.9394212,0.0003,2]
[342175552,1731533440011,-250.0,0.0003,2]
[342175553,1731533440021,-1000.0,0.00030093,2]
[342175554,1731533440030,-500.0,0.00030136,4]
[342175555,1731533440039,-500.0,0.00030136,4]
[342175556,1731533440049,-526.28,0.00030136,4]
[342175557,1731533440057,-500.0,0.00030136,4]
[342175558,1731533440066,-500.0,0.00030136,4]
[342175559,1731533440076,-3083.59,0.00030136,4]
[342175560,1731533440085,-500.0,0.00030136,4]
[342175561,1731533440094,-614.07,0.00030136,4]
[342175562,1731533440104,-500.0,0.00030136,4]
[342175563,1731533440113,-850.78,0.00030136,4]
[342175564,1731533440122,-1116.24,0.00030136,4]
[342175565,1731533440132,-1265.35,0.00030136,4]
[342175566,1731533440141,-500.0,0.00030136,4]
[342175567,1731533440151,-500.0,0.00030136,4]
[342175568,1731533440160,-648.26,0.00030136,4]
[342175569,1731533440169,-164.25851207,0.00030136,4]
[342175570,1731533440179,-538.65,0.00030136,4]
[342175571,1731533440188,-578.56,0.00030136,4]
[342175572,1731533440198,-500.0,0.00030136,4]
[342175573,1731533440209,-500.0,0.00030136,4]
[342175574,1731533440218,-39734.37834106,0.00030193,2]
[342175575,1731533440231,-126643.10357905,0.00030193,2]
[342175576,1731533440241,-171.93108239,0.00030193,2]
[342175577,1731533440251,-755.22778864,0.00030193,2]
[342175578,1731533440260,-153.269,0.00030203,120]
[342175579,1731533440270,-676.46217695,0.00030223,2]
[342175580,1731533440279,-151.0,0.00030224,7]
[342175581,1731533440288,-151.0,0.0003029,7]
[342175582,1731533440298,-151.0,0.0003029,7]
[342175583,1731533440307,-151.0,0.0003029,7]
[342175584,1731533440317,-151.0,0.0003029,7]
[342175585,1731533440326,-151.0,0.0003029,7]
[342175586,1731533440335,-151.0,0.0003029,7]
[342175587,1731533440344,-151.0,0.0003029,7]
[342175588,1731533440354,-151.0,0.0003029,7]
[342175589,1731533440364,-151.0,0.0003029,7]
[342175590,1731533440373,-151.0,0.0003029,7]
[342175591,1731533440382,-152.878976,0.0003029,7]
[342175592,1731533440391,-151.0,0.0003029,7]
[342175593,1731533440405,-151.0,0.0003029,7]
[342175594,1731533440516,-151.0,0.0003029,7]
[342175595,1731533440527,-151.0,0.0003029,7]
[342175596,1731533440536,-151.0,0.0003029,7]
[342175597,1731533440546,-151.0,0.0003029,7]
[342175598,1731533440555,-151.0,0.0003029,7]
[342175599,1731533440564,-151.0,0.0003029,7]
[342175600,1731533440574,-151.0,0.0003029,7]
[342175601,1731533440583,-151.0,0.0003029,7]
[342175602,1731533440592,-200.762057,0.0003029,7]
[342175603,1731533440601,-151.0,0.0003029,7]